bitfinex/quotes_ETHUSD_20250223
["timestamp","ask_amount","ask_price","bid_price","bid_amount"]
[1740352340890,3.0,2821.2,2820.5,0.8062]
[1740352341116,6.54466,2821.2,2820.5,5.325829]
[1740352341487,3.5449,2821.0,2820.5,1.780369]
[1740352341702,3.5449,2821.0,2820.6,5.39]
[1740352342388,3.54492,2821.0,2820.6,5.39]
[1740352343425,3.54504,2820.9,2820.6,5.39]
[1740352343626,3.51232,2820.9,2820.6,5.39]
[1740352343822,3.54482,2821.1,2820.6,5.39]
[1740352344053,3.54472,2821.1,2820.6,10.0068459]
[1740352344658,3.54485,2821.0,2820.6,6.4615859]
[1740352344814,3.54496,2820.9,2820.6,6.4615859]
[1740352345678,3.54492,2821.0,2820.6,6.4615859]
[1740352345841,3.54505,2820.9,2820.7,0.72677859]
[1740352346353,3.54521,2820.7,2820.6,5.39]
[1740352346530,0.7792,2821.0,2820.2,5.39]
[1740352346743,0.8164,2821.3,2820.2,5.39]
[1740352346946,0.8164,2821.3,2820.3,0.55]
[1740352347156,3.54465,2821.2,2820.6,3.54526]
[1740352347358,3.54456,2821.3,2820.7,3.5452]
[1740352347566,0.1497981,2822.0,2820.9,0.8159]
[1740352347728,0.1497981,2822.0,2820.6,8.81]
[1740352347729,0.1497981,2822.0,2821.4,0.8159]
[1740352348149,0.1497981,2822.0,2821.7,3.54391]
[1740352348346,0.1497981,2822.0,2821.9,7.662846]
[1740352349373,0.1497981,2822.0,2821.9,25.123846]
[1740352351760,0.1497981,2822.0,2821.9,15.5581]
[1740352351961,0.1497981,2822.0,2821.9,19.10181]
[1740352352577,0.1497981,2822.0,2821.9,19.82265664]
[1740352352790,0.1497981,2822.0,2821.9,21.40281663]
[1740352353077,0.84375224,2822.0,2821.9,21.40281663]
[1740352353456,0.84375224,2822.0,2821.9,24.16385263]
[1740352354948,0.84375224,2822.0,2821.9,27.16385263]
[1740352355337,1e-05,2822.2,2822.1,5.00976]
[1740352355539,1e-05,2822.2,2822.1,22.20976]
[1740352355744,0.005,2823.9,2823.8,6.54132]
[1740352355983,0.005,2823.9,2823.8,5.6545]
[1740352356279,0.005,2823.9,2823.8,10.0373736]
[1740352356584,0.1497981,2824.8,2824.0,3.54107]
[1740352356882,0.1497981,2824.8,2824.2,3.54075]
[1740352357091,0.1497981,2824.8,2824.3,3.54065]
[1740352357272,3.54026,2824.7,2824.0,5.6545]
[1740352357578,0.9112981,2824.8,2824.0,5.39]
[1740352357738,3.54095,2824.1,2824.0,5.39]
[1740352358002,3.54133,2823.8,2823.5,5.39]
[1740352358209,3.54157,2823.6,2823.5,5.39]
[1740352358404,3.54145,2823.7,2823.5,5.39]
[1740352358731,4.30252,2824.1,2823.5,5.39]
[1740352358933,3.5407,2824.3,2823.6,3.54151]
[1740352359239,3.54082,2824.2,2823.5,10.35168]
[1740352359397,3.54086,2824.2,2823.7,0.8032]
[1740352359602,0.7615,2824.6,2823.7,0.8032]
[1740352359603,0.7615,2824.6,2824.0,3.54099]
[1740352359849,3.54064,2824.4,2824.0,0.55]
[1740352360051,3.5408,2824.3,2823.9,0.55]
[1740352360348,3.54104,2824.1,2823.8,5.39]
[1740352360505,3.54083,2824.2,2823.8,5.39]
[1740352360842,3.54027,2824.7,2823.9,9.99574099]
[1740352360999,7.08055,2824.7,2824.2,0.55]
[1740352361202,3.54032,2824.6,2824.2,0.55]
[1740352361443,3.54046,2824.5,2824.1,0.55]
[1740352361643,3.5407,2824.3,2824.0,5.39]
[1740352361950,3.54045,2824.5,2824.1,5.39]
[1740352362134,3.54045,2824.5,2824.2,0.55]
[1740352362436,3.54059,2824.4,2824.1,5.39]
[1740352362749,3.6898781,2824.8,2824.1,8.93094]
[1740352362970,0.1497981,2824.8,2824.7,0.55]
[1740352363245,0.1497981,2824.8,2824.7,4.499213]
[1740352363403,0.1497981,2824.8,2824.7,11.75906577]
[1740352363611,0.1497981,2824.8,2824.7,8.315613]
[1740352363804,0.1497981,2824.8,2824.7,5.315613]
[1740352364430,0.1497981,2824.8,2824.7,1.775423]
[1740352364630,0.1497981,2824.8,2824.5,5.39]
[1740352364836,3.54023,2824.7,2824.5,5.39]
[1740352365134,3.6899381,2824.8,2824.5,5.39]
[1740352365456,0.1497981,2824.8,2824.7,0.55]
[1740352365687,0.1497981,2824.8,2824.5,5.39]
[1740352365838,3.6899281,2824.8,2824.5,5.39]
[1740352366179,0.1497981,2824.8,2824.5,5.39]
[1740352366542,3.6898881,2824.8,2824.5,5.39]
[1740352366984,0.1497981,2824.8,2824.5,5.39]
[1740352367135,3.6899481,2824.8,2824.5,5.39]
[1740352367543,7.2300981,2824.8,2824.5,5.39]
[1740352367742,3.6899481,2824.8,2824.5,5.39]
[1740352368174,3.6949481,2824.8,2824.5,5.39]
[1740352369485,3.54032,2824.6,2824.5,5.39]
[1740352369655,3.54029,2824.7,2824.5,5.39]
[1740352371986,0.1547981,2824.8,2824.5,5.39]
[1740352372190,3.6949281,2824.8,2824.5,5.39]
[1740352373284,3.54021,2824.7,2824.5,5.39]
[1740352374086,0.8192,2824.7,2824.0,9.6258]
[1740352374290,3.54059,2824.4,2824.0,2.31738]
[1740352374589,3.54059,2824.4,2824.1,0.55]
[1740352374744,0.1547981,2824.8,2824.3,0.55]
[1740352374950,3.6949281,2824.8,2824.4,0.409082]
[1740352375178,3.54022,2824.7,2824.3,0.55]
[1740352375675,7.2350981,2824.8,2824.3,0.55]
[1740352375875,3.54022,2824.7,2824.3,0.55]
[1740352376443,3.54057,2824.4,2824.3,0.55]
[1740352376986,3.54045,2824.5,2824.2,0.55]
[1740352377693,3.54043,2824.6,2824.2,0.55]
[1740352377877,3.54044,2824.5,2824.2,0.55]
[1740352378283,3.54043,2824.6,2824.2,0.55]
[1740352378470,7.08086,2824.6,2824.2,0.55]
[1740352378667,3.54043,2824.6,2824.2,0.55]
[1740352378898,3.54052,2824.5,2824.2,0.55]
[1740352379287,0.1547981,2824.8,2824.2,0.55]
[1740352379483,3.54046,2824.5,2824.2,0.55]
[1740352379689,3.54056,2824.5,2824.2,1.57696875]
[1740352380060,3.54054,2824.5,2824.2,1.57696875]
[1740352380276,3.54059,2824.4,2824.2,10.38696875]
[1740352381523,0.1547981,2824.8,2824.2,10.38696875]
[1740352381832,3.5402,2824.7,2824.2,13.37778875]
[1740352382032,3.54258,2822.8,2822.2,3.5432]
[1740352382244,3.54258,2822.8,2821.6,0.8329]
[1740352382245,3.54265,2822.8,2821.6,0.8329]
[1740352382380,3.54146,2823.7,2822.2,0.8329]
[1740352382585,2.08626472,2826.6,2823.0,3.57986302]
[1740352382586,0.7895,2824.3,2823.0,3.57986302]
[1740352382798,3.54095,2824.1,2823.7,0.55]
[1740352382979,0.7895,2824.3,2823.7,0.55]
[1740352382980,3.54132,2823.8,2823.7,0.55]
[1740352383206,3.54123,2823.9,2823.0,0.8329]
[1740352383481,3.54233,2823.0,2822.5,0.8232]
[1740352383682,3.54185,2823.4,2822.1,0.8232]
[1740352383683,3.54278,2822.7,2822.1,0.8232]
[1740352383921,3.54258,2822.8,2822.1,0.8232]
[1740352384133,0.7918,2824.4,2822.9,0.7514]
[1740352384286,3.54124,2823.9,2822.9,9.8414]
[1740352384489,6.28787302,2824.2,2823.0,1.2588363]
[1740352384707,6.28787302,2824.2,2823.5,0.55]
[1740352384708,3.5411,2824.0,2823.5,0.55]
[1740352384909,3.54133,2823.8,2823.5,0.55]
[1740352385108,3.54116,2824.0,2823.1,3.54212]
[1740352385279,3.53876302,2824.4,2823.7,3.54138]
[1740352385483,4.24667332,2824.4,2823.8,3.5412]
[1740352385727,4.24667332,2824.4,2823.5,1.31]
[1740352385728,0.26679083,2823.9,2823.5,4.30169]
[1740352385928,3.54104,2824.1,2823.6,0.55]
[1740352386096,3.54104,2824.1,2823.5,3.54164]
[1740352386496,7.08208,2824.1,2823.5,3.54164]
[1740352387025,3.54136,2823.8,2823.2,4.33455]
[1740352387203,3.54115,2824.0,2823.2,4.33462]
[1740352387400,3.54133,2823.8,2823.2,4.33462]
[1740352387606,3.54133,2823.8,2823.3,0.55]
[1740352387991,3.54133,2823.8,2823.3,4.09194]
[1740352388388,3.54115,2824.0,2823.4,3.54179]
[1740352388635,3.54115,2824.0,2823.3,4.09194]
[1740352388793,3.54129,2823.9,2823.3,4.09194]
[1740352388993,3.54128,2823.9,2823.3,4.09194]
[1740352389423,3.54128,2823.9,2823.4,3.54182]
[1740352389630,7.08258,2823.9,2823.3,0.55]
[1740352389825,3.54158,2823.6,2823.3,0.55]
[1740352390030,7.08281,2823.8,2823.3,0.55]
[1740352390246,3.91231583,2824.0,2823.3,0.55]
[1740352390397,0.7918,2824.4,2823.3,0.55]
[1740352390597,3.54034,2824.6,2824.0,3.54101]
[1740352390914,0.809,2824.7,2823.8,3.54125]
[1740352390915,0.26927388,2824.5,2823.8,0.55]
[1740352391112,3.5408,2824.3,2823.8,0.55]
[1740352391326,3.5409,2824.2,2823.8,0.55]
[1740352391531,3.5408,2824.3,2823.8,0.55]
[1740352392046,3.5408,2824.3,2823.8,4.500459]
[1740352392636,3.809,2824.7,2824.3,3.54069]
[1740352392637,0.809,2824.7,2824.3,3.54069]
[1740352392803,3.95716474,2824.8,2824.3,3.54069]
[1740352394052,0.41707474,2824.8,2824.3,3.54069]
[1740352394230,0.1547981,2824.8,2824.4,3.54046]
[1740352395220,0.1547981,2824.8,2824.0,0.2129]
[1740352395221,3.54028,2824.7,2824.0,0.2129]
[1740352395422,3.54028,2824.7,2824.1,3.54085]
[1740352395723,3.54028,2824.7,2824.2,3.54079]
[1740352396946,3.54033,2824.6,2824.2,3.54079]
[1740352397128,3.54033,2824.6,2824.0,3.75387]
[1740352397129,3.54065,2824.4,2823.8,9.890369]
[1740352397448,3.54069,2824.4,2823.8,9.890369]
[1740352397846,3.5407,2824.3,2823.8,9.890369]
[1740352398047,3.54069,2824.4,2823.9,3.54118]
[1740352398424,3.54071,2824.3,2823.8,9.890369]
[1740352398624,3.54069,2824.4,2823.8,6.349149]
[1740352398826,3.54152,2823.7,2823.1,6.1755]
[1740352399149,3.54151,2823.7,2823.2,3.54205]
[1740352399446,3.4440958,2824.1,2823.1,5.39]
[1740352399644,3.5412,2823.9,2823.1,5.39]
[1740352399820,3.54165,2823.6,2823.2,0.539]
[1740352400153,7.31829,2824.0,2823.1,5.39]
[1740352400445,3.54173,2823.5,2823.1,5.39]
[1740352400645,3.54189,2823.4,2823.1,5.39]
[1740352400830,3.54164,2823.6,2823.0,3.54224]
[1740352401151,3.7772,2824.0,2823.4,3.54182]
[1740352401152,3.54123,2823.9,2823.4,3.54182]
[1740352401450,3.54123,2823.9,2823.3,0.55]
[1740352401653,0.7772,2824.0,2823.5,3.54165]
[1740352401824,4.31829,2824.0,2823.5,3.54165]
[1740352402039,4.31829,2824.0,2823.4,3.54171]
[1740352402233,3.54122,2823.9,2823.4,3.54171]
[1740352402757,3.54122,2823.9,2823.3,4.09194]
[1740352402938,3.54135,2823.8,2823.3,4.855332]
[1740352403134,1.1129,2824.5,2823.5,0.55]
[1740352403342,3.54083,2824.2,2823.7,3.54138]
[1740352404062,7.08176,2824.2,2823.7,3.54138]
[1740352404565,7.08176,2824.2,2823.5,3.54161]
[1740352404566,3.54095,2824.1,2823.6,3.54157]
[1740352404736,3.54095,2824.1,2823.5,3.54161]
[1740352404941,3.0,2824.3,2823.5,1.4545972]
[1740352405157,3.0,2824.3,2823.3,6.703392]
[1740352405158,3.54147,2823.7,2823.3,5.94]
[1740352405567,3.54127,2823.9,2823.3,5.94]
[1740352405727,3.54133,2823.8,2823.3,9.48193]
[1740352406129,3.54121,2823.9,2823.4,3.54174]
[1740352406467,3.54134,2823.8,2823.3,9.48193]
[1740352406666,4.36734,2823.8,2823.3,10.866526]
[1740352406839,4.36734,2823.8,2823.3,10.866466]
[1740352409623,0.826,2823.8,2823.4,3.54182]
[1740352410135,4.36738,2823.8,2823.3,10.866536]
[1740352410535,3.54147,2823.7,2823.3,10.866536]
[1740352410753,3.54147,2823.7,2823.3,7.324596]
[1740352411064,4.36733,2823.8,2823.3,10.866476]
[1740352412165,4.36733,2823.8,2823.4,0.55]
[1740352413231,3.54146,2823.7,2823.4,0.55]
[1740352414167,0.826,2823.8,2823.3,5.39]
[1740352414371,3.54182,2823.4,2823.3,5.39]
[1740352414789,3.54172,2823.5,2822.8,6.199]
[1740352415092,3.54172,2823.5,2822.8,6.8189]
[1740352415093,3.54171,2823.5,2822.8,6.8189]
[1740352415248,3.54189,2823.4,2822.8,10.36137]
[1740352415449,3.54202,2823.3,2822.9,0.55]
[1740352415649,3.54166,2823.6,2822.9,4.09239]
[1740352415865,3.5417,2823.5,2822.9,4.09239]
[1740352417550,3.5417,2823.5,2822.8,5.39]
[1740352417551,3.54245,2822.9,2822.8,5.39]
[1740352417757,3.54248,2822.9,2822.4,0.7514]
[1740352418235,3.54248,2822.9,2822.4,4.29447]
[1740352418704,7.08502,2822.9,2822.4,4.29447]
[1740352418993,7.08502,2822.9,2822.4,0.7514]
[1740352418994,3.54248,2822.9,2822.4,0.7514]
[1740352419297,3.54303,2822.5,2822.3,5.39]
[1740352419601,3.54289,2822.6,2822.3,5.39]
[1740352420598,3.54289,2822.6,2822.4,0.55]
[1740352421866,4.3019,2822.8,2822.4,0.55]
[1740352422577,3.5427,2822.7,2822.4,0.55]
[1740352424768,3.5427,2822.7,2822.3,0.55]
[1740352425105,0.8231,2823.7,2822.5,0.55]
[1740352425263,0.8231,2824.0,2822.8,0.55]
[1740352425600,3.54176,2823.5,2823.1,0.55]
[1740352425959,3.54132,2823.9,2823.4,0.55]
[1740352426160,0.832,2824.4,2824.1,0.55]
[1740352426366,3.54051,2824.5,2824.1,0.55]
[1740352426595,7.08125,2824.4,2824.1,0.55]
[1740352426976,1.14478968,2824.7,2824.0,5.94]
[1740352427181,0.1547981,2824.8,2824.4,0.55]
[1740352427382,0.1547981,2824.8,2824.6,0.55]
[1740352427589,3.6949581,2824.8,2824.6,0.55]
[1740352427904,3.6949581,2824.8,2824.4,0.55]
[1740352428109,0.1547981,2824.8,2824.5,0.55]
[1740352428306,0.1547981,2824.8,2824.0,6.065]
[1740352428489,0.1547981,2824.8,2824.5,3.54037]
[1740352428813,0.1547981,2824.8,2824.6,0.55]
[1740352429118,3.54019,2824.7,2824.5,0.55]
[1740352429294,0.1547981,2824.8,2824.4,0.55]
[1740352429609,4.2104112,2824.7,2824.0,5.39]
[1740352429792,0.43652093,2824.6,2824.0,5.39]
[1740352429993,3.6949281,2824.8,2824.3,3.54069]
[1740352430165,0.1547981,2824.8,2824.4,0.55]
[1740352430362,0.1547981,2824.8,2824.7,0.55]
[1740352430567,0.1547981,2824.8,2824.6,0.55]
[1740352432711,0.1547981,2824.8,2824.5,4.09043]
[1740352432909,0.1547981,2824.8,2824.7,0.55]
[1740352433256,0.1547981,2824.8,2824.5,0.55]
[1740352433903,0.1547981,2824.8,2824.5,4.09044]
[1740352434219,0.1547981,2824.8,2824.7,4.09019]
[1740352434722,0.1547981,2824.8,2824.7,10.26139]
[1740352435014,0.1547981,2824.8,2824.7,11.641549]
[1740352435323,0.1547981,2824.8,2824.7,14.641549]
[1740352438260,4.23447369,2826.2,2825.8,0.8284]
[1740352438261,0.69612369,2826.2,2825.8,0.8284]
[1740352438401,3.53709,2827.2,2826.7,0.55]
[1740352438734,3.53683,2827.4,2826.3,5.39]
[1740352439046,3.54225,2827.1,2826.5,3.53787]
[1740352439200,0.005,2827.1,2826.6,0.55]
[1740352439386,3.54228,2827.1,2826.5,3.53785]
[1740352439588,3.4439112,2827.5,2826.9,3.53733]
[1740352439899,3.53681,2827.5,2826.9,3.53733]
[1740352440100,0.80107881,2827.5,2826.8,0.55]
[1740352440412,3.53682,2827.4,2826.8,0.55]
[1740352440821,0.80107881,2827.5,2826.8,0.55]
[1740352440822,0.80107881,2827.5,2826.9,3.53741]
[1740352441019,0.80107881,2827.5,2827.0,0.55]
[1740352441214,0.80107881,2827.5,2827.0,4.08728]
[1740352441417,3.53772,2826.7,2826.4,0.807]
[1740352441733,3.53772,2826.7,2826.3,5.39]
[1740352441734,3.53773,2826.7,2826.3,5.39]
[1740352441893,3.53769,2826.7,2826.3,5.39]
[1740352442096,4.2388112,2826.9,2825.8,5.39]
[1740352442407,4.2388112,2826.9,2825.7,0.7944]
[1740352442603,3.53808,2826.4,2825.8,3.53875]
[1740352443142,3.53808,2826.4,2825.8,3.5387]
[1740352443297,3.53784,2826.6,2825.8,0.97231]
[1740352443490,3.53761,2826.8,2825.9,0.55]
[1740352443491,3.53821,2826.3,2825.9,0.55]
[1740352443820,3.53808,2826.4,2825.7,0.7944]
[1740352444002,3.53832,2826.2,2825.7,0.7944]
[1740352444193,3.53878,2825.9,2825.6,5.39]
[1740352444397,3.53878,2825.9,2825.3,3.53935]
[1740352444721,3.53878,2825.9,2825.3,5.392725]
[1740352444918,3.53878,2825.9,2825.3,1.853375]
[1740352445235,0.7509,2826.0,2825.6,3.53905]
[1740352445403,4.28947,2826.0,2825.5,4.08916]
[1740352445609,0.7509,2826.0,2825.5,0.55]
[1740352445992,0.7509,2826.0,2825.5,4.08918]
[1740352446193,3.53871,2825.9,2825.5,0.55]
[1740352446537,0.7509,2826.0,2825.5,0.55]
[1740352446738,0.7509,2826.0,2825.5,4.08912]
[1740352446944,4.28948,2826.0,2825.5,4.08918]
[1740352447236,0.7509,2826.0,2825.5,0.55]
[1740352447433,3.53871,2825.9,2825.5,0.55]
[1740352448132,0.7509,2826.0,2825.5,4.08919]
[1740352448374,3.53832,2826.2,2825.6,3.53898]
[1740352448537,3.53847,2826.1,2825.6,3.53898]
[1740352448898,0.8249,2826.6,2825.8,0.55]
[1740352449092,4.36222,2827.0,2825.7,7.7389112]
[1740352449300,4.36222,2827.0,2826.4,0.55]
[1740352449498,4.36222,2827.0,2826.4,4.08806]
[1740352451001,3.5375,2826.9,2826.4,4.08806]
[1740352451197,3.53765,2826.8,2826.3,0.55]
[1740352451643,3.53765,2826.8,2826.3,4.08813]
[1740352451849,0.790005,2826.8,2826.0,5.39]
[1740352452013,0.7616,2826.7,2825.8,3.53881]
[1740352452256,0.7616,2826.7,2825.9,3.5386]
[1740352452257,3.53804,2826.5,2825.9,3.5386]
[1740352452439,3.53833,2826.2,2825.6,3.53898]
[1740352452936,3.81703,2826.5,2825.6,1.323933]
[1740352453142,3.53803,2826.5,2825.7,0.55]
[1740352453350,0.7616,2826.7,2825.7,4.08886]
[1740352453569,3.53801,2826.5,2825.8,3.53882]
[1740352453772,0.7616,2826.7,2825.6,1.323933]
[1740352453773,4.2993,2826.7,2826.2,3.53824]
[1740352454085,3.53809,2826.4,2825.6,1.323933]
[1740352454240,3.53809,2826.4,2825.9,3.53866]
[1740352454987,5.529,2827.0,2826.4,3.53801]
[1740352454988,4.32002,2827.0,2826.4,3.53801]
[1740352455279,3.53761,2826.8,2826.3,3.53809]
[1740352455481,0.7826,2827.0,2826.6,3.53779]
[1740352455876,0.7826,2827.0,2826.6,3.53777]
[1740352456189,0.8089,2827.3,2826.7,3.53769]
[1740352456354,4.34585,2827.3,2826.8,3.53746]
[1740352456551,4.34585,2827.3,2826.7,3.53769]
[1740352456784,3.53709,2827.2,2826.7,4.08762]
[1740352456990,0.8089,2827.3,2826.9,3.53737]
[1740352457288,0.9712981,2827.6,2827.1,0.55]
[1740352457446,0.1497981,2827.6,2827.3,3.53692]
[1740352457858,0.1497981,2827.6,2827.1,4.08718]
[1740352458195,0.1497981,2827.6,2827.2,3.53706]
[1740352458484,0.1497981,2827.6,2827.1,7.62419]
[1740352458689,0.1497981,2827.6,2827.1,4.08707]
[1740352458869,0.1497981,2827.6,2827.1,7.62419]
[1740352459075,0.1497981,2827.6,2827.1,4.08707]
[1740352459257,0.1497981,2827.6,2827.5,4.08669]
[1740352459876,3.6829381,2830.4,2828.9,0.8018]
[1740352460089,3.6829381,2830.4,2830.3,3.53319]
[1740352460090,0.1497981,2830.4,2830.3,3.53319]
[1740352460387,8.1e-06,2830.4,2830.3,4.88389]
[1740352460538,8.1e-06,2830.4,2830.3,6.07000212]
[1740352460744,0.0008,2832.3,2830.4,0.5478]
[1740352460996,0.04970712,2833.0,2832.7,3.5302]
[1740352461294,0.04970712,2833.0,2830.5,5.08027877]
[1740352461295,0.2,2835.8,2833.7,0.1]
[1740352461511,0.00091818,2836.0,2834.6,3.57779841]
[1740352461786,0.00091818,2836.0,2833.1,0.26393296]
[1740352461787,0.00091818,2836.0,2835.8,0.04998841]
[1740352461986,0.00091818,2836.0,2835.3,0.04998841]
[1740352462191,0.00417767,2836.3,2836.2,3.62584]
[1740352462340,0.00417767,2836.3,2835.9,0.8007]
[1740352462539,2.02148,2836.2,2834.8,0.8007]
[1740352462793,0.25001159,2839.1,2837.3,0.04998841]
[1740352462952,3.54410334,2839.2,2836.8,0.04998841]
[1740352462953,0.1,2837.7,2836.8,0.04998841]
[1740352463162,0.70906359,2837.4,2836.4,0.04998841]
[1740352463455,3.52377,2837.9,2837.5,0.04998841]
[1740352463581,3.52281,2838.7,2837.6,0.1]
[1740352463743,0.005,2838.9,2836.8,0.7719]
[1740352463744,0.72075262,2838.1,2836.8,0.7719]
[1740352463942,0.352281,2838.6,2836.9,0.1]
[1740352464243,0.352281,2838.6,2836.2,0.2]
[1740352464444,0.005,2838.9,2835.6,0.82585328]
[1740352464445,0.27145113,2837.5,2835.6,0.82585328]
[1740352464730,0.005,2838.9,2837.4,3.62435]
[1740352464912,0.5,2840.0,2837.6,3.52408]
[1740352464913,0.72054009,2839.9,2837.6,3.52408]
[1740352465108,0.1,2840.6,2837.5,0.87512751]
[1740352465109,0.17378737,2841.7,2841.6,0.2]
[1740352465317,0.17378737,2841.7,2841.6,0.1]
[1740352465477,0.55128552,2843.8,2842.9,0.1]
[1740352465825,0.403,2844.9,2842.3,0.2]
[1740352465826,3.5171,2843.3,2842.3,0.2]
[1740352465992,3.51345,2846.3,2843.4,0.2]
[1740352466322,3.51679,2843.5,2843.4,0.04456914]
[1740352466523,4.63457982,2843.5,2841.7,1.0038]
[1740352466707,3.91616501,2843.0,2841.6,0.2]
[1740352466915,0.411,2843.6,2840.3,0.8208]
[1740352467109,3.91616501,2843.6,2841.0,0.8208]
[1740352467312,3.69039595,2845.3,2841.7,3.61897]
[1740352467313,0.411,2844.5,2841.7,3.61897]
[1740352467485,3.51837,2842.3,2841.0,0.8208]
[1740352467688,3.51868,2842.0,2841.0,0.8208]
[1740352467882,3.51659,2843.7,2841.0,4.34064]
[1740352468081,3.0,2842.6,2841.0,0.8208]
[1740352468387,0.8224,2844.0,2841.1,0.1]
[1740352468626,3.51645,2843.8,2842.6,3.51787]
[1740352468812,3.51657,2843.7,2842.7,3.0]
[1740352469017,0.351645,2843.8,2842.5,0.7562]
[1740352469338,3.51592,2844.2,2842.5,4.27421]
[1740352469546,3.91616501,2844.3,2842.5,3.7562]
[1740352469698,4.62628465,2844.3,2842.5,3.7562]
[1740352469899,0.46262847,2844.2,2841.7,0.8241]
[1740352470103,3.91616501,2843.5,2841.7,0.8241]
[1740352470333,4.33416501,2843.9,2841.7,0.8241]
[1740352470485,3.91616501,2843.9,2842.0,3.0]
[1740352470690,3.91616501,2843.9,2841.7,0.8241]
[1740352470691,3.518,2842.6,2841.7,0.8241]
[1740352470975,3.51736,2843.1,2841.7,0.8241]
[1740352471104,3.869096,2843.1,2841.7,4.3431]
[1740352471328,0.351736,2843.1,2841.7,0.8241]
[1740352471485,3.51877,2841.9,2841.7,0.8241]
[1740352471687,3.5194,2841.4,2840.5,0.7903]
[1740352471933,3.51864,2842.0,2840.5,0.7903]
[1740352472115,3.52038,2840.6,2840.5,0.7903]
[1740352472290,3.51973,2841.2,2840.5,0.7903]
[1740352472510,3.52002,2840.9,2840.5,0.7903]
[1740352472685,3.51974,2841.2,2840.5,0.7903]
[1740352472883,3.51996,2841.0,2840.5,0.7903]
[1740352473326,0.703962,2841.0,2839.5,0.7603]
[1740352473488,3.91616501,2841.0,2839.5,0.7603]
[1740352473684,3.52088,2840.2,2839.5,0.7603]
[1740352473998,3.52033,2840.7,2839.5,0.7603]
[1740352474198,3.52159,2839.7,2839.1,0.005]
[1740352474403,0.42,2840.8,2839.5,3.52173]
[1740352474602,3.52055,2840.5,2839.5,3.873903]
[1740352474813,0.419,2841.1,2839.1,0.005]
[1740352474983,3.52211,2839.2,2839.1,0.005]
[1740352475187,3.91616501,2840.3,2839.1,0.005]
[1740352475420,3.52112,2840.0,2839.1,0.005]
[1740352475582,3.52137,2839.8,2839.1,0.005]
[1740352475781,3.52177,2839.5,2839.1,0.005]
[1740352475979,3.52163,2839.6,2839.1,0.005]
[1740352476180,4.33516501,2840.3,2839.1,0.005]
[1740352476408,3.52112,2840.0,2839.1,0.005]
[1740352476608,3.52211,2839.2,2839.1,0.005]
[1740352477006,3.52211,2839.2,2838.6,0.7715004]
[1740352477218,3.52197,2839.4,2838.6,0.7715004]
[1740352477421,3.52216,2839.2,2838.6,0.7715004]
[1740352477599,3.521,2840.1,2838.6,0.7715004]
[1740352477798,0.43065855,2840.0,2838.6,0.7715004]
[1740352478137,3.52187,2839.4,2838.6,0.7715004]
[1740352478340,0.815,2841.3,2838.6,0.7715004]
[1740352478511,0.815,2841.3,2839.7,3.52139]
[1740352478512,3.51963,2841.2,2839.7,3.52139]
[1740352478715,3.52112,2840.1,2839.3,0.71810891]
[1740352478901,3.51988,2841.0,2838.6,0.7715004]
[1740352478902,3.52172,2839.6,2838.6,0.7715004]
[1740352479101,3.52001,2840.9,2838.6,4.2942704]
[1740352479102,0.419,2840.2,2838.6,4.2942704]
[1740352479300,3.521,2840.1,2838.7,3.52265]
[1740352479541,0.419,2840.2,2838.6,0.7715004]
[1740352479859,3.52195,2839.4,2838.6,0.7715004]
[1740352480012,3.52227,2839.1,2838.7,0.55]
[1740352480217,3.52206,2839.3,2838.7,0.55]
[1740352480458,3.52192,2839.4,2838.7,0.55]
[1740352480611,3.52139,2839.8,2838.7,1.03443404]
[1740352480810,3.52163,2839.6,2838.9,3.52247]
[1740352481011,3.52163,2839.6,2838.9,4.22699885]
[1740352481228,3.91616501,2840.2,2838.7,0.55]
[1740352481427,3.52237,2839.0,2838.7,0.55]
[1740352481633,4.62817084,2839.8,2838.0,0.7561]
[1740352481939,0.89785608,2839.7,2838.0,0.7561]
[1740352482098,3.52283,2838.7,2838.0,4.27962]
[1740352482304,3.52285,2838.7,2838.1,3.52348]
[1740352482504,0.417,2839.5,2838.0,0.7561]
[1740352482505,3.52207,2839.3,2838.2,3.52326]
[1740352482714,3.52217,2839.2,2838.5,4.07287]
[1740352482931,3.52217,2839.2,2838.5,0.55]
[1740352483131,0.417,2839.5,2838.3,0.55]
[1740352483296,3.52243,2839.0,2838.3,4.07315]
[1740352483500,4.3504,2839.9,2838.4,0.55]
[1740352483501,4.21491909,2839.2,2838.4,0.55]
[1740352483744,3.52128,2839.9,2838.5,0.55]
[1740352483941,3.91616501,2841.0,2839.8,3.52129]
[1740352483942,3.5205,2840.5,2839.8,3.52129]
[1740352484242,3.52053,2840.5,2840.1,0.55]
[1740352484548,3.5198,2841.1,2840.5,0.55]
[1740352484752,3.52017,2840.8,2840.5,0.55]
[1740352485041,3.5192,2841.6,2839.9,3.52117]
[1740352485042,4.33116501,2841.6,2839.9,3.52117]
[1740352485262,4.33116501,2841.6,2839.5,3.52167]
[1740352485263,3.91616501,2841.2,2839.5,3.52167]
[1740352485408,3.52033,2840.7,2840.0,3.52105]
[1740352485604,3.52033,2840.7,2840.1,0.55]
[1740352485865,3.52058,2840.5,2840.1,0.55]
[1740352486143,3.52045,2840.6,2840.0,4.07104]
[1740352486367,3.52051,2840.5,2839.9,0.55]
[1740352486503,4.6241502,2841.7,2839.9,0.55]